Cogmind - Beta 16 @@@ ROGUE MODE // 2026.01.21 @ 17:20:06 Player: Jimothy Jimone Result: Self-destructed Performance ------------- Evolutions (2) 1000 Regions Visited (3) 600 Robots Destroyed (23) 115 Value Destroyed (673) 673 Prototype IDs (0) 0 Alien Tech Used (0) 0 Bonus (0) 0 TOTAL SCORE: 2388 Bonus ------- None Cogmind --------- Core Integrity 102/550 Matter 187/300 Energy 14/100 System Corruption 0% Temperature Hot (219) Movement Core (50) Location -8/Materials Parts ------- > --- POWER (2) -------- (None) > --- PROPULSION (3) --- (None) > --- UTILITY (3) ------ (None) > --- WEAPON (3) ------- (None) > --- INVENTORY (5) ---- (None) Peak State ------------ > --- POWER ------------ Ion Engine > --- PROPULSION ------- Carbon-fiber Leg Carbon-fiber Leg Carbon-fiber Leg > --- UTILITY ---------- Heat Sink Machine Analyzer Sensor Array > --- WEAPON ----------- Shotgun Maul > --- INVENTORY -------- Light Ion Engine Light Ion Engine Wheel Wheel Small Storage Unit [Rating: 19] Favorites ----------- Power Ion Engine Engine Ion Engine Propulsion Carbon-fiber Leg Leg Carbon-fiber Leg Wheel Wheel Utility Sensor Array Device Sensor Array Storage Small Storage Unit Processor Machine Analyzer Protection Hardened Medium Armor Plating Weapon Maul Energy Gun Small Laser Ballistic Gun Light Assault Rifle Impact Weapon Maul Build | -11 -10 -9 -8 ------- Run | Yrd Mat Mat Mat Slots Evolved 4 | . . 2 2 Power 1 | . . . 1 Propulsion 1 | . . 1 . Utility 1 | . . 1 . Weapon 1 | . . . 1 Parts Attached 34 | 5 10 9 10 Power 5 | 1 1 2 1 Engine 5 | 1 1 2 1 Core . | . . . . Reactor . | . . . . Propulsion 13 | 2 5 3 3 Treads . | . . . . Leg 11 | 2 5 3 1 Wheel 2 | . . . 2 Hover . | . . . . Flight . | . . . . Utility 6 | 1 3 1 1 Device 2 | . 2 . . Storage 1 | 1 . . . Processor 2 | . 1 1 . Hackware . | . . . . Protection 1 | . . . 1 Artifact . | . . . . Weapon 10 | 1 1 3 5 Energy Gun 2 | . . 1 1 Energy Cannon . | . . . . Ballistic Gun 6 | 1 1 1 3 Ballistic Cannon . | . . . . Launcher . | . . . . Special Weapon . | . . . . Impact Weapon 2 | . . 1 1 Slashing Weapon . | . . . . Piercing Weapon . | . . . . Special Melee Weapon . | . . . . Unidentified Prototypes . | . . . . Parts Lost 26 | . 4 10 12 Power 5 | . . 3 2 Propulsion 8 | . 2 3 3 Utility 6 | . 1 3 2 Weapon 7 | . 1 1 5 Highest Loss Streak 12 | . 3 6 12 To Critical Strikes . | . . . . Average Backups 4 | 3 4 5 . Power 1 | . 1 2 . Propulsion 1 | 1 2 2 . Utility . | . 1 1 . Weapon . | . . . . Tool/Special . | . . . . Unused Backups . | . . . . Power . | . . . . Propulsion . | . . . . Utility . | . . . . Weapon . | . . . . Tool/Special . | . . . . Average Slot Usage (%) 79 | . 81 85 31 Engine 10 | . 14 9 4 Leg 24 | . 26 28 . Device 17 | . 18 19 . Processor 5 | . 3 6 . Ballistic Gun 11 | . 17 9 4 Impact Weapon 7 | . . 10 2 Peak Build Rating 19 | 5 7 19 11 Average Rating 10 | 3 5 14 6 On Entrance 2 | . 4 6 . Avg Prop Armor Cover (%) . | . . . . Naked Turns 14 | . . 14 . Heaviest Build 19 | 4 8 13 19 Greatest Support 45 | 20 20 45 20 Greatest Overweight (x) 3 | . 2 3 1 Average Overweight (x) . | . . . . Largest Inventory Capacity 8 | 8 5 5 8 Average Capacity 5 | 5 5 5 7 Most Carried 5 | 5 5 5 4 Average Carried 4 | 3 4 5 . Final Capacity 5 | 5 5 5 5 Final Carried 5 | 5 5 5 . Class Distribution -------------------- 100% | Mutant Dominant Class ---------------- Mutant | -10/Materials Mutant | -9/Materials Mutant | -8/Materials Resources | -11 -10 -9 -8 ----------- Run | Yrd Mat Mat Mat Matter Collected 555 | 249 152 139 15 Remotely . | . . . . Salvage Created 747 | . 129 423 195 Parts 45 | . 10 21 14 Haulers Intercepted 1 | . . 1 . Recyclers Shooed . | . . . . Parts Field Recycled . | . . . . Retrieved Matter . | . . . . Parts Self-Destructed . | . . . . Prevented . | . . . . Parts Restored . | . . . . Kills | -11 -10 -9 -8 ------- Run | Yrd Mat Mat Mat Combat Hostiles Destroyed 21 | . 3 12 6 Melee 5 | . . 5 . Guns 14 | . 3 5 6 Classes Destroyed 5 | . 1 4 . Hauler 1 | . . 1 . Watcher 1 | . . 1 . Swarmer 7 | . . 4 3 Grunt 10 | . 3 5 2 Sentry 4 | . . 3 1 Best Kill Streak 6 | . 2 6 5 Combat Bots Only 5 | . 2 4 5 Max Kills in Single Turn 2 | . 1 2 1 Gunslinging . | . . . . Exploded . | . . . . Melee 1 | . . 1 . Uniques/NPCs Destroyed . | . . . . Combat | -11 -10 -9 -8 -------- Run | Yrd Mat Mat Mat Hostile Shots Fired 309 | . 57 100 152 Missed 66 | . 8 24 34 Hits 243 | . 49 76 118 Melee 10 | . . 10 . Projectile 233 | . 49 66 118 Critical Strikes 10 | . 2 2 6 Damage Taken 3324 | . 651 1073 1600 Core 1004 | . 214 342 448 Absorbed by Shields . | . . . . Core Remaining (%) 42 | 100 14 14 . Volleys Fired 74 | . 28 18 28 Largest 2 | . 2 1 2 Hottest 69 | . 40 40 69 Shots Fired 102 | . 51 18 33 Gun 102 | . 51 18 33 Cannon . | . . . . Launcher . | . . . . Special . | . . . . Kinetic 89 | . 51 13 25 Thermal 13 | . . 5 8 Explosive . | . . . . Electromagnetic . | . . . . Robot Hit Streak 14 | . 14 10 8 Robot Miss Streak 6 | . 1 3 6 Penetration Max . | . . . . Secondary Targets 1 | . . . 1 Max Gunslinging Chain 1 | . . . 1 Shots Hit Robots 105 | . 44 35 26 Core Hits 32 | . 11 9 12 Critical Kills 1 | . . 1 . Critical Parts Destroyed 6 | . . 6 . Critical Strikes 7 | . . 7 . Smash 7 | . . 7 . Melee Attacks 34 | . . 33 1 Impact 34 | . . 33 1 Slashing . | . . . . Piercing . | . . . . Sneak Attacks 1 | . . 1 . Combat Hostiles . | . . . . Follow-up Attacks . | . . . . Damage Inflicted 1808 | . 354 995 459 Guns 1018 | . 354 227 437 Cannons . | . . . . Explosions . | . . . . Melee 782 | . . 761 21 Ramming 8 | . . 7 1 Kinetic 833 | . 354 193 286 Thermal 185 | . . 34 151 Explosive . | . . . . Electromagnetic . | . . . . Impact 782 | . . 761 21 Slashing . | . . . . Piercing . | . . . . Highest Corruption . | . . . . Average Corruption . | . . . . Corruption Purged . | . . . . Corruption Blocked . | . . . . Overload Shots . | . . . . Overflow Damage 249 | . . 249 . Projectiles . | . . . . Explosions . | . . . . Melee 249 | . . 249 . Knockbacks 3 | . . 3 . Impact 3 | . . 3 . Kinetic . | . . . . Secondary . | . . . . Self-Inflicted Damage 3 | . . 3 . Shots . | . . . . Rammed 3 | . . 2 1 Targets Rammed 3 | . . 2 1 Kicked . | . . . . Crushed . | . . . . Highest Temperature 210 | . 83 . 210 Average Temperature 46 | . 36 . 69 Received Heat Transfer 1518 | . 408 300 810 Siege Activations . | . . . . Martial Activations . | . . . . Shielding Activations . | . . . . Robots Disrupted . | . . . . Combat Hostiles . | . . . . Robots Corrupted 3 | . . 3 . Combat Hostiles 2 | . . 2 . Parts Fried 2 | . . 2 . Impact Corruptions 9 | . . 9 . Robots Melted . | . . . . Combat Hostiles . | . . . . Parts Melted 1 | . . . 1 Heat Transferred 371 | . . 75 296 Parts Sabotaged . | . . . . Parts Stolen . | . . . . Parts Stripped . | . . . . Power Chain Reactions . | . . . . Alert | -11 -10 -9 -8 ------- Run | Yrd Mat Mat Mat Maximum Alert Level . | . . . . Low Security (%) 100 | 100 100 100 100 Level 1 . | . . . . Level 2 . | . . . . Level 3 . | . . . . Level 4 . | . . . . Level 5 . | . . . . High Security . | . . . . Max Security . | . . . . Peak Influence 164 | . 46 164 95 Initial 29 | . . . 29 Average 32 | . 9 42 42 Influence Increases 588 | . 76 347 165 Destroy 0b10 Robot/C 420 | . 60 240 120 Destroy 0b10 Robot/NC 10 | . . 10 . Destroy Leader 104 | . 10 64 30 Successful Hack 24 | . 6 18 . Disable Machine 15 | . . . 15 Lose Combat Pursuer 15 | . . 15 . Influence Decreases 553 | . 76 275 202 Entered New Map 43 | . . . 43 Time Decay 285 | . 60 185 40 Lost Part 225 | . 16 90 119 Squads Dispatched 3 | . . 1 2 Investigation . | . . . . Extermination . | . . . . Reinforcement 3 | . . 1 2 Assault . | . . . . Garrison . | . . . . Intercept . | . . . . Searches Triggered . | . . . . Construction Impeded 1 | . . . 1 Haulers Reinforced . | . . . . Active Scanning Responses . | . . . . Cargo Convoy Interrupts . | . . . . Stealth | -11 -10 -9 -8 --------- Run | Yrd Mat Mat Mat Distress Signals 2 | . . . 2 Communications Jammed . | . . . . Distress Signals . | . . . . Times Spotted 34 | . 4 17 13 Peak Tracking Total 10 | . 2 4 10 Tactical Retreats 1 | . . 1 . Traps | -11 -10 -9 -8 ------- Run | Yrd Mat Mat Mat Traps Triggered 2 | . 2 . . Indirectly . | . . . . Trap Hack Attempts . | . . . . Triggered . | . . . . Disarmed . | . . . . Reprogrammed . | . . . . Reused . | . . . . Traps Extracted . | . . . . Installed . | . . . . Triggered . | . . . . Machines | -11 -10 -9 -8 ---------- Run | Yrd Mat Mat Mat Machines Disabled 1 | . . . 1 Max in Single Turn 1 | . . . 1 Machines Repaired . | . . . . Machines Dismantled . | . . . . Machines Sabotaged . | . . . . Overloaded Fab Kills . | . . . . Hacking | -11 -10 -9 -8 --------- Run | Yrd Mat Mat Mat Machines Accessed 7 | . 3 4 . Terminals 7 | . 3 4 . Fabricators . | . . . . Repair Stations . | . . . . Recycling Units . | . . . . Scanalyzers . | . . . . Garrison Access . | . . . . Total Hacks 13 | . 4 9 . Successful 10 | . 3 7 . Failed 3 | . 1 2 . Catastrophic . | . . . . Database Lockouts . | . . . . Manual 4 | . 1 3 . Terminals 13 | . 4 9 . Fabricators . | . . . . Repair Stations . | . . . . Recycling Units . | . . . . Scanalyzers . | . . . . Garrison Access . | . . . . Terminal Hacks 10 | . 3 7 . Record 2 | . . 2 . Robot Analysis 1 | . . 1 . Alert Level 4 | . 1 3 . Zone Layout 3 | . 2 1 . Fabricator Hacks . | . . . . Repair Station Hacks . | . . . . Recycling Unit Hacks . | . . . . Scanalyzer . | . . . . Garrison Access Hacks . | . . . . Unauthorized Hacks . | . . . . Terminals . | . . . . Fabricators . | . . . . Repair Stations . | . . . . Recycling Units . | . . . . Scanalyzers . | . . . . Garrison Access . | . . . . Data Cores Recovered . | . . . . Used . | . . . . Hacking Detections 2 | . . 2 . Full Trace Events 1 | . . 1 . Feedback Events . | . . . . Feedback Blocked . | . . . . Robot Schematics Acquired . | . . . . Robots Built . | . . . . Authchips . | . . . . Time . | . . . . Total Robot Build Rating . | . . . . Part Schematics Acquired . | . . . . Parts Built . | . . . . Authchips . | . . . . Time . | . . . . Total Part Build Rating . | . . . . Part Studies Acquired . | . . . . Parts Repaired . | . . . . Time . | . . . . Parts Recycled . | . . . . Recycled Matter . | . . . . Retrieved Matter . | . . . . Retrieved Components . | . . . . Parts Scanalyzed . | . . . . Part Schematics Acquired . | . . . . Parts Damaged . | . . . . Bothacking | -11 -10 -9 -8 ------------ Run | Yrd Mat Mat Mat Used RIF Installer . | . . . . Robots Hacked . | . . . . Non-combat . | . . . . Combat . | . . . . Robot Hacks Applied . | . . . . Relay Couplers Released . | . . . . Fabnet Peak Effective % . | . . . . Robots Rewired . | . . . . Allies Hacked . | . . . . Hacks Repelled . | . . . . Allies | -11 -10 -9 -8 -------- Run | Yrd Mat Mat Mat Total Allies . | . . . . Largest Group . | . . . . Highest-Rated Group . | . . . . Highest-Rated Ally . | . . . . Total Orders . | . . . . Ally Attacks . | . . . . Total Damage . | . . . . Kills . | . . . . Allies Corrupted . | . . . . Allies Melted . | . . . . Intel | -11 -10 -9 -8 ------- Run | Yrd Mat Mat Mat Active Infowar (turns) 1033 | . 293 740 . Sensors 923 | . 293 630 . Machine Analysis 474 | . . 474 . Robot Analysis Total 1 | . . 1 . Derelict Logs Recovered . | . . . . Drone Launches . | . . . . Drone Recoveries . | . . . . Exploration | -11 -10 -9 -8 ------------- Run | Yrd Mat Mat Mat Turns Passed 1262 | 75 304 766 117 Spaces Moved 610 | 56 157 353 44 Core 33 | 6 2 22 3 Treads . | . . . . Legs 537 | 50 155 331 1 Wheels 40 | . . . 40 Hover . | . . . . Flight . | . . . . Fastest Speed 50 | 50 120 50 80 Average Speed 114 | 112 120 116 85 Slowest Speed 200 | 120 150 200 120 Overloaded Moves . | . . . . Propulsion Burnouts . | . . . . Robots Hopped . | . . . . Potential Cave-ins . | . . . . Cave-ins Triggered . | . . . . Exploration Rate (%) 16 | 5 25 29 5 Regions Visited 3 Branch Regions . Pre-discovered Areas . | . . . . Known Exits Taken . | . . . . Unknown Exits Taken 3 | 1 1 1 . Scrap Searched . | . . . . Spaces Dug . | . . . . Terrain Destroyed . | . . . . Melee . | . . . . Projectile . | . . . . AOE . | . . . . Terrain Rammed . | . . . . Walls Destroyed . | . . . . Machines Disabled . | . . . . Actions | -11 -10 -9 -8 --------- Run | Yrd Mat Mat Mat Total 1002 | 66 227 623 86 Wait 234 | . 28 206 . Move 607 | 55 156 352 44 Hop . | . . . . Pick Up 5 | 5 . . . Fast Attach 25 | 4 8 6 7 Attach 7 | 1 1 . 5 Detach 1 | 1 . . . Swap 7 | . 4 3 . Drop 5 | . 2 3 . Fire 74 | . 28 18 28 Melee 34 | . . 33 1 Ram 3 | . . 2 1 Kick . | . . . . Crush . | . . . . Escape Stasis . | . . . . Rewire . | . . . . Trap . | . . . . Miscellaneous . | . . . . Route ------- -11/Scrapyard -10/Materials -9/Materials -8/Materials History --------- Turn | Location | Event 2 | -11/Scrapyard | Met Revision 17 22 | -11/Scrapyard | Discovered new exit (range 16) 76 | -11/Scrapyard | Entered Materials 210 | -10/Materials | Core integrity fell below 50% 230 | -10/Materials | Core integrity fell below 20% 261 | -10/Materials | Lost 3 parts (2n1w) 309 | -10/Materials | Build established: Mutant 375 | -10/Materials | Discovered new exit (range 4) 380 | -10/Materials | Entered another Materials area 380 | -9/Materials | Evolved 2 slots: Propulsion x1, Utility x1 1128 | -9/Materials | Core integrity fell below 50% 1134 | -9/Materials | Core integrity fell below 20% 1143 | -9/Materials | Discovered new exit (range 7) 1146 | -9/Materials | Entered another Materials area 1146 | -8/Materials | Evolved 2 slots: Power x1, Weapon x1 1156 | -8/Materials | Lost 6 parts (1p3n2u) 1236 | -8/Materials | Core integrity fell below 50% 1263 | -8/Materials | Core integrity fell below 20% 1263 | -8/Materials | Self-destructed Last Messages --------------- U-05 Engineer works on Processing Tank. Critical hit (Burn: +37). Slammed into G-47 Trooper. U-05 Engineer works on Processing Tank. W-25 Informer sends out distress signal. Hvy. Assault Rifle destroyed. U-05 Engineer completes Processing Tank. Acquired Carbon-fiber Leg. Critical hit (Burn: +37). Acquired Hvy. Laser. U-05 Engineer suffers critical hit (Burn). U-05 Engineer destroyed. R-06 Scavenger collects Wheel. G-47 Trooper destroyed. R-06 Scavenger collects Aluminum Leg. U-05 Engineer completes Processing Tank. Carbon-fiber Leg destroyed. U-05 Engineer completes Processing Tank. Sml. Storage Unit destroyed. Hvy. Laser destroyed. Map ----- +----------------------------------------------------+ | ?????????????????????????????????????????????????? | | ?????????????????????????????????????????????????? | | ?????????????????????????????????????????????????? | | ?????????????????????????????????????????????????? | | ?????????????????????????????????????????????????? | | ?????????????????????????????????????????????????? | | ?????????????????????????????????????????????????? | | ?????????????????????????????????????????????????? | | ?????????????????????????????????????????????????? | | ?????????????????????????????????????????????????? | | ?????????????????????????????????????????????????? | | ?????????????????????????????????????????????????? | | ?????????????????????????????????????????????????? | | ?????????????????????????????????????????????????? | | ?????????????????????????????????????????????????? | | ?????????????????????????????????????????????????? | | ?????????????????????????????????????????????????? | | ?????????????????????????????????????????????????? | | ?????????????????????????????????????????????????? | | ?????????? ##############??????????????????????? | | ?????????" + %= #??????????????????????? | | ????????????????## <<<<<=#??????????????????????? | | ?????????????????# r<<<<<[#??????????????????????? | | ?????????????????# <<